fUSD/lending_fUSD_20250916
["ID","MTS","AMOUNT","RATE_DAILY","PERIOD"]
[385712554,1757985044568,-151.0,0.00035341,7]
[385712555,1757985044579,-256.163963,0.00035341,7]
[385712556,1757985044592,-153.0,0.00035342,2]
[385712557,1757985044603,-153.0,0.00035342,2]
[385712558,1757985044615,-153.0,0.00035342,2]
[385712559,1757985044628,-153.0,0.00035342,2]
[385712560,1757985044641,-153.0,0.00035342,2]
[385712561,1757985044653,-153.0,0.00035342,2]
[385712562,1757985044664,-153.0,0.00035342,2]
[385712563,1757985044676,-153.0,0.00035342,2]
[385712564,1757985044688,-153.0,0.00035342,2]
[385712565,1757985044699,-153.0,0.00035342,2]
[385712566,1757985044711,-153.0,0.00035342,2]
[385712567,1757985044723,-153.0,0.00035342,2]
[385712568,1757985044734,-153.0,0.00035342,2]
[385712569,1757985044745,-153.0,0.00035342,2]
[385712570,1757985044757,-153.0,0.00035342,2]
[385712571,1757985044769,-153.0,0.00035342,2]
[385712572,1757985044780,-153.0,0.00035342,2]
[385712573,1757985044792,-153.0,0.00035342,2]
[385712574,1757985044804,-153.0,0.00035342,2]
[385712575,1757985044815,-153.0,0.00035342,2]
[385712576,1757985044827,-153.0,0.00035342,2]
[385712577,1757985044839,-153.0,0.00035342,2]
[385712578,1757985044851,-153.0,0.00035342,2]
[385712579,1757985044862,-153.0,0.00035342,2]
[385712580,1757985044874,-153.0,0.00035342,2]
[385712581,1757985044885,-153.0,0.00035342,2]
[385712582,1757985044896,-153.0,0.00035342,2]
[385712583,1757985044910,-153.0,0.00035342,2]
[385712584,1757985044923,-153.0,0.00035342,2]
[385712585,1757985044936,-153.0,0.00035342,2]
[385712586,1757985044950,-153.0,0.00035342,2]
[385712587,1757985044962,-153.0,0.00035342,2]
[385712588,1757985044974,-153.0,0.00035342,2]
[385712589,1757985044987,-153.0,0.00035342,2]
[385712590,1757985045000,-1425.0,0.00035343,2]
[385712591,1757985045013,-500.0,0.00035373,5]
[385712592,1757985045025,-500.0,0.00035373,5]
[385712593,1757985045038,-500.0,0.00035373,5]
[385712594,1757985045050,-500.0,0.00035385,7]
[385712595,1757985045061,-278.0,0.00035396,2]
[385712596,1757985045072,-400.0,0.00035399,2]
[385712597,1757985045083,-1860.9174517,0.000354,14]
[385712598,1757985045095,-1000.0,0.000354,7]
[385712599,1757985045106,-1772.0,0.000354,7]
[385712600,1757985045118,-1006.0,0.000354,7]
[385712601,1757985045129,-1351.0,0.000354,7]
[385712602,1757985045141,-1000.0,0.000354,7]
[385712603,1757985045152,-151.0,0.00035405,7]
[385712604,1757985045164,-555.493422,0.00035405,7]
[385712605,1757985045175,-555.493422,0.00035405,7]
[385712606,1757985045187,-151.0,0.00035405,7]
[385712607,1757985045198,-151.0,0.00035405,7]
[385712608,1757985045209,-555.493422,0.00035405,7]
[385712609,1757985045221,-151.0,0.00035405,7]
[385712610,1757985045232,-555.493422,0.00035405,7]
[385712611,1757985045243,-8075.6972,0.00035405,2]
[385712612,1757985045255,-1000.0,0.00035405,2]
[385712613,1757985045268,-500.0,0.00035408,2]
[385712614,1757985045279,-1091.0,0.00035408,2]
[385712615,1757985045290,-500.0,0.00035408,2]
[385712616,1757985045302,-237.2855729,0.00035411,7]
[385712617,1757985045313,-154.0,0.00035411,7]
[385712618,1757985045325,-151.0,0.00035411,7]
[385712619,1757985045337,-154.0,0.00035411,7]
[385712620,1757985045348,-547.0,0.00035411,7]
[385712621,1757985045360,-151.0,0.00035411,7]
[385712622,1757985045372,-152.46809847,0.00035411,7]
[385712623,1757985045383,-547.0,0.00035411,7]
[385712624,1757985045395,-151.0,0.00035411,7]
[385712625,1757985045407,-547.0,0.00035411,7]
[385712626,1757985045419,-152.0,0.00035411,7]
[385712627,1757985045430,-151.0,0.00035411,7]
[385712628,1757985045445,-547.0,0.00035411,7]
[385712629,1757985045456,-152.0,0.00035411,7]
[385712630,1757985045468,-547.0,0.00035411,7]
[385712631,1757985045480,-151.0,0.00035411,7]
[385712632,1757985045492,-152.0,0.00035411,7]
[385712633,1757985045503,-547.0,0.00035411,7]
[385712634,1757985045515,-151.0,0.00035411,7]
[385712635,1757985045526,-152.0,0.00035411,7]
[385712636,1757985045538,-160.85688929,0.00035411,7]
[385712638,1757985045549,-152.0,0.00035411,7]
[385712639,1757985045560,-547.0,0.00035411,7]
[385712641,1757985045572,-152.0,0.00035411,7]
[385712642,1757985045588,-548.62800359,0.00035411,7]
[385712643,1757985045600,-152.0,0.00035411,7]
[385712644,1757985045612,-152.0,0.00035411,7]
[385712645,1757985045624,-152.0,0.00035411,7]
[385712646,1757985045635,-152.0,0.00035411,7]
[385712647,1757985045648,-152.0,0.00035411,7]
[385712648,1757985045660,-152.0,0.00035411,7]
[385712649,1757985045673,-152.0,0.00035411,7]
[385712650,1757985045684,-285.43521295,0.00035411,7]
[385712651,1757985045695,-154.0,0.00035411,7]
[385712653,1757985045707,-152.0,0.00035411,7]
[385712655,1757985045718,-152.0,0.00035411,7]
[385712656,1757985045730,-152.0,0.00035411,7]
[385712657,1757985045741,-152.0,0.00035411,7]
[385712658,1757985045752,-152.0,0.00035411,7]
[385712659,1757985045765,-152.0,0.00035411,7]
[385712660,1757985045776,-152.0,0.00035411,7]
[385712661,1757985045788,-226.68184995,0.00035411,7]
[385712662,1757985045802,-191487.4912,0.00035416,2]
[385712663,1757985045814,-240.332869,0.00035416,7]
[385712664,1757985045826,-151.0,0.00035416,7]
[385712665,1757985045837,-151.0,0.00035416,7]
[385712666,1757985045849,-151.0,0.00035416,7]
[385712667,1757985045861,-151.0,0.00035416,7]
[385712668,1757985045879,-151.0,0.00035416,7]
[385712669,1757985045895,-151.0,0.00035416,7]
[385712670,1757985045912,-151.0,0.00035416,7]
[385712671,1757985045926,-151.0,0.00035416,7]
[385712672,1757985045937,-151.0,0.00035416,7]
[385712673,1757985045948,-151.0,0.00035416,7]
[385712674,1757985045960,-151.0,0.00035416,7]
[385712675,1757985045972,-151.0,0.00035416,7]
[385712676,1757985045983,-208.342499,0.00035416,7]
[385712677,1757985045995,-151.0,0.00035416,7]
[385712678,1757985046007,-151.0,0.00035416,7]
[385712679,1757985046019,-151.0,0.00035416,7]
[385712680,1757985046031,-151.0,0.00035416,7]
[385712681,1757985046043,-151.0,0.00035416,7]
[385712682,1757985046054,-196.94905,0.00035416,7]
[385712683,1757985046067,-155.603488,0.00035416,7]
[385712684,1757985046079,-151.0,0.00035416,7]
[385712685,1757985046091,-151.0,0.00035416,7]
[385712686,1757985046104,-228.017406,0.00035416,7]
[385712687,1757985046117,-151.0,0.00035416,7]
[385712688,1757985046129,-151.0,0.00035416,7]
[385712689,1757985046141,-163.730829,0.00035416,7]
[385712690,1757985046153,-163.730829,0.00035416,7]
[385712691,1757985046165,-163.730829,0.00035416,7]
[385712692,1757985046177,-163.730829,0.00035416,7]
[385712693,1757985046189,-151.0,0.00035416,7]
[385712694,1757985046200,-151.0,0.00035416,7]
[385712695,1757985046213,-151.0,0.00035416,7]
[385712696,1757985046224,-1512.03130618,0.00035416,5]
[385712697,1757985046236,-1425.0,0.00035424,2]
[385712698,1757985046248,-500.0,0.00035424,7]
[385712699,1757985046260,-345.42,0.00035431,60]
[385712700,1757985046272,-500.0,0.00035439,7]
[385712701,1757985046283,-1000.0,0.00035465,2]
[385712702,1757985046299,-278.0,0.00035472,2]
[385712703,1757985046311,-500.0,0.00035473,5]
[385712704,1757985046322,-500.0,0.00035473,5]
[385712705,1757985046334,-153.67462524,0.00035479,30]
[385712706,1757985046345,-151.0,0.0003549,7]
[385712707,1757985046357,-151.0,0.0003549,7]
[385712708,1757985046369,-153.290593,0.0003549,7]
[385712709,1757985046383,-151.0,0.0003549,7]
[385712710,1757985046396,-5000.0,0.000355,30]
[385712711,1757985046408,-8283.15941262,0.000355,30]
[385712712,1757985046419,-2000.0,0.000355,2]
[385712713,1757985046432,-2000.01,0.000355,2]
[385712714,1757985046449,-2000.0,0.000355,2]
[385712715,1757985046461,-2000.0,0.000355,2]
[385712716,1757985046473,-279.608919,0.00035505,7]
[385712717,1757985046486,-300.0,0.00035515,120]
[385712718,1757985046499,-505.50526249,0.00035515,30]
[385712719,1757985046510,-171.5510774,0.00035516,2]
[385712720,1757985046520,-302.20885512,0.00035516,2]
[385712721,1757985046529,-5445.55249536,0.00035516,2]
[385712722,1757985046538,-5897.62021485,0.00035516,2]
[385712723,1757985046547,-151.0,0.00035516,7]
[385712724,1757985046556,-555.493422,0.00035516,7]
[385712725,1757985046566,-555.493422,0.00035516,7]
[385712726,1757985046994,-151.0,0.00035516,7]
[385712727,1757985047023,-151.0,0.00035516,7]
[385712728,1757985047053,-555.493422,0.00035516,7]
[385712729,1757985047067,-286.144007,0.00035516,7]
[385712730,1757985047076,-555.493422,0.00035516,7]
[385712731,1757985047085,-628.28089574,0.00035516,2]
[385712732,1757985047095,-167.32559498,0.00035516,7]
[385712733,1757985047105,-161.20297567,0.00035516,2]
[385712734,1757985047116,-1643.26674733,0.00035516,2]
[385712735,1757985047125,-991.66528597,0.00035521,5]
[385712736,1757985047134,-345.42,0.00035531,60]
[385712737,1757985047145,-251.614,0.0003556,2]
[385712738,1757985047156,-150.0,0.0003556,2]
[385712739,1757985047166,-150.0,0.0003556,2]
[385712740,1757985047176,-755.0,0.0003556,2]
[385712741,1757985047185,-3389.0,0.0003556,2]
[385712742,1757985047195,-1260.0,0.0003556,2]
[385712743,1757985047205,-2039.0,0.0003556,2]
[385712744,1757985047214,-1303.0,0.0003556,2]
[385712745,1757985047225,-568.0,0.0003556,2]
[385712746,1757985047235,-601.0,0.0003556,2]
[385712747,1757985047245,-1580.0,0.0003556,2]
[385712748,1757985047257,-815.0,0.0003556,2]
[385712749,1757985047269,-6175.0,0.0003556,2]
[385712750,1757985047280,-4170.0,0.0003556,2]
[385712751,1757985047291,-18862.0,0.0003556,2]
[385712752,1757985047300,-858.293,0.0003556,2]
[385712753,1757985047309,-4000.0,0.00035562,4]
[385712754,1757985047319,-1000.0,0.00035564,2]
[385712755,1757985047329,-450.57716397,0.00035573,2]
[385712756,1757985047340,-500.0,0.00035573,5]
[385712757,1757985047351,-1000.0,0.00035579,2]
[385712758,1757985047363,-150.0,0.0003558,2]
[385712759,1757985047374,-278.29586702,0.00035583,2]
[385712760,1757985047386,-354.69081091,0.00035586,2]
[385712761,1757985047396,-431.08575479,0.00035589,2]
[385712762,1757985047406,-150.0,0.00035589,7]
[385712763,1757985047415,-150.0,0.00035589,7]
[385712764,1757985047424,-150.0,0.00035589,7]
[385712765,1757985047433,-150.0,0.00035589,7]
[385712766,1757985047448,-150.0,0.00035589,7]
[385712767,1757985047458,-152.23321639,0.00035589,7]
[385712768,1757985047469,-150.0,0.00035589,7]
[385712769,1757985047479,-266.64867805,0.00035589,7]
[385712770,1757985047489,-150.0,0.00035589,7]
[385712771,1757985047498,-150.0,0.00035589,7]
[385712772,1757985047508,-150.0,0.00035589,7]
[385712773,1757985047518,-507.48069868,0.00035592,2]
[385712774,1757985047527,-583.87564257,0.00035595,2]
[385712775,1757985047536,-660.27058646,0.00035597,2]
[385712776,1757985047545,-736.66553034,0.000356,2]
[385712777,1757985047555,-813.06047423,0.00035603,2]
[385712778,1757985047564,-490.92341882,0.00035606,2]
[385712779,1757985047574,-889.45541812,0.00035606,2]
[385712780,1757985047583,-150.0,0.0003561,60]
[385712781,1757985047593,-150.0,0.0003561,60]
[385712782,1757985047603,-150.0,0.0003561,60]
[385712783,1757985047612,-500.0,0.0003561,60]
[385712784,1757985047621,-500.0,0.0003561,60]
[385712785,1757985047630,-500.0,0.0003561,60]
[385712786,1757985047640,-150.0,0.0003561,60]
[385712787,1757985047649,-150.0,0.0003561,60]
[385712788,1757985047658,-500.0,0.0003561,60]
[385712789,1757985047669,-300.0,0.00035615,10]
[385712790,1757985047678,-150.0,0.00035615,2]
[385712791,1757985047688,-150.0,0.00035615,2]
[385712792,1757985047698,-189.6971427,0.00035615,7]
[385712793,1757985047707,-200.0,0.00035615,7]
[385712794,1757985047717,-153.04681062,0.00035615,7]
[385712795,1757985047726,-322.6107,0.00035615,7]
[385712796,1757985047736,-418.20879502,0.00035615,7]
[385712797,1757985047746,-200.0,0.00035615,7]
[385712798,1757985047755,-200.0,0.00035615,7]
[385712799,1757985047765,-600.0,0.00035615,7]
[385712800,1757985047774,-250.0,0.00035615,7]
[385712801,1757985047784,-670.58624095,0.00035615,7]
[385712802,1757985047794,-695.39793187,0.00035615,7]
[385712803,1757985047806,-302.60790669,0.00035615,7]
[385712804,1757985047815,-8882.6885148,0.00035615,7]
[385712805,1757985047824,-9211.34798985,0.00035615,7]
[385712806,1757985047834,-160.0,0.00035615,7]
[385712807,1757985047844,-9552.16786547,0.00035615,7]
[385712808,1757985047854,-9905.5980765,0.00035615,7]
[385712809,1757985047865,-160.0,0.00035615,7]
[385712810,1757985047875,-10272.10520533,0.00035615,7]
[385712811,1757985047884,-1000.0,0.00035615,7]
[385712812,1757985047894,-202.2211901,0.00035615,7]
[385712813,1757985047904,-210.95535825,0.00035615,7]
[385712814,1757985047913,-10652.17309792,0.00035615,7]
[385712815,1757985047922,-11046.30350255,0.00035615,7]
[385712816,1757985047931,-257.91778498,0.00035615,7]
[385712817,1757985047940,-486.46105784,0.00035615,7]
[385712818,1757985047950,-267.46074303,0.00035615,7]
[385712819,1757985047962,-151.0,0.00035615,7]
[385712820,1757985047972,-277.35679052,0.00035615,7]
[385712821,1757985047982,-500.0,0.00035615,7]
[385712822,1757985047992,-287.61899177,0.00035615,7]
[385712823,1757985048002,-500.0,0.00035615,7]
[385712824,1757985048011,-250.0,0.00035615,7]
[385712825,1757985048020,-298.26089446,0.00035615,7]
[385712826,1757985048029,-1000.0,0.00035615,7]
[385712827,1757985048038,-500.0,0.00035615,7]
[385712828,1757985048048,-250.0,0.00035615,7]
[385712829,1757985048058,-309.29654756,0.00035615,7]
[385712830,1757985048067,-1000.0,0.00035615,7]
[385712831,1757985048076,-500.0,0.00035615,7]
[385712832,1757985048086,-250.0,0.00035615,7]
[385712833,1757985048095,-1000.0,0.00035615,7]
[385712834,1757985048104,-320.74051982,0.00035615,7]
[385712835,1757985048113,-500.0,0.00035615,7]
[385712836,1757985048122,-250.0,0.00035615,7]
[385712837,1757985048131,-1000.0,0.00035615,7]
[385712838,1757985048140,-221.81185148,0.00035615,7]
[385712839,1757985048149,-306.70293094,0.00035615,7]
[385712840,1757985048158,-250.0,0.00035615,7]
[385712841,1757985048167,-1000.0,0.00035615,7]
[385712842,1757985048176,-1000.0,0.00035615,7]
[385712843,1757985048185,-250.0,0.00035615,7]
[385712844,1757985048194,-913.18346186,0.00035615,7]
[385712845,1757985048203,-500.0,0.00035615,7]
[385712846,1757985048213,-250.0,0.00035615,7]
[385712847,1757985048222,-250.0,0.00035615,7]
[385712848,1757985048232,-250.0,0.00035615,7]
[385712849,1757985048241,-250.0,0.00035615,7]
[385712850,1757985048250,-250.0,0.00035615,7]
[385712851,1757985048260,-174.61919142,0.00035615,7]
[385712852,1757985048269,-250.0,0.00035615,7]
[385712853,1757985048278,-250.0,0.00035615,7]
[385712854,1757985048287,-500.0,0.00035615,7]
[385712855,1757985048296,-500.0,0.00035615,7]
[385712856,1757985048305,-500.0,0.00035615,7]
[385712857,1757985048315,-500.0,0.00035615,7]
[385712858,1757985048324,-500.0,0.00035615,7]
[385712859,1757985048333,-500.0,0.00035615,7]
[385712860,1757985048342,-500.0,0.00035615,7]
[385712861,1757985048352,-500.0,0.00035615,7]
[385712862,1757985048361,-500.0,0.00035615,7]
[385712863,1757985048370,-500.0,0.00035615,7]
[385712864,1757985048380,-500.0,0.00035615,7]
[385712865,1757985048389,-500.0,0.00035615,7]
[385712866,1757985048399,-382.91712266,0.00035615,7]
[385712867,1757985048409,-151.0,0.00035615,7]
[385712868,1757985048418,-151.0,0.00035615,7]
[385712869,1757985048428,-151.0,0.00035615,7]
[385712870,1757985048439,-151.0,0.00035615,7]
[385712871,1757985048451,-151.0,0.00035615,7]
[385712872,1757985048460,-151.0,0.00035615,7]
[385712873,1757985048469,-151.0,0.00035615,7]
[385712874,1757985048478,-151.0,0.00035615,7]
[385712875,1757985048488,-151.0,0.00035615,7]
[385712876,1757985048497,-151.0,0.00035615,7]
[385712877,1757985048507,-151.0,0.00035615,7]
[385712878,1757985048516,-151.0,0.00035615,7]
[385712879,1757985048525,-151.0,0.00035615,7]
[385712880,1757985048534,-1155.78,0.00035615,120]
[385712881,1757985048544,-327.94527442,0.00035616,2]
[385712882,1757985048555,-554.63304211,0.00035616,2]
[385712883,1757985048564,-554.63304211,0.00035616,2]
[385712884,1757985048574,-150.0,0.00035616,2]
[385712885,1757985048583,-2010.07263374,0.00035616,30]
[385712886,1757985048593,-400.0,0.00035616,7]
[385712887,1757985048603,-400.0,0.00035616,7]
[385712888,1757985048612,-400.0,0.00035616,7]
[385712889,1757985048622,-400.0,0.00035616,7]
[385712890,1757985048631,-456.75728983,0.00035616,7]
[385712891,1757985048642,-400.0,0.00035616,7]
[385712892,1757985048652,-400.0,0.00035616,7]
[385712893,1757985048661,-400.0,0.00035616,7]
[385712894,1757985048672,-400.0,0.00035616,7]
[385712895,1757985048683,-400.0,0.00035616,7]
[385712896,1757985048693,-400.0,0.00035616,7]
[385712897,1757985048703,-400.0,0.00035616,7]
[385712898,1757985048712,-400.0,0.00035616,7]
[385712899,1757985048723,-400.0,0.00035616,7]
[385712900,1757985048733,-400.0,0.00035616,7]
[385712901,1757985048743,-434.66541634,0.00035616,7]
[385712902,1757985048753,-404.59106714,0.00035616,7]
[385712903,1757985048762,-400.0,0.00035616,7]
[385712904,1757985048772,-400.0,0.00035616,7]
[385712905,1757985048782,-400.0,0.00035616,7]
[385712906,1757985048792,-400.0,0.00035616,7]
[385712907,1757985048802,-510.71111328,0.00035616,7]
[385712908,1757985048812,-408.26147602,0.00035616,7]
[385712909,1757985048821,-400.0,0.00035616,7]
[385712910,1757985048830,-400.0,0.00035616,7]
[385712911,1757985048839,-416.99608237,0.00035616,7]
[385712912,1757985048849,-400.0,0.00035616,7]
[385712913,1757985048862,-400.0,0.00035616,7]
[385712914,1757985048880,-242.30963821,0.00035616,7]
[385712915,1757985048890,-400.0,0.00035616,7]
[385712916,1757985048900,-241.45807581,0.00035616,7]
[385712917,1757985048911,-403.4895164,0.00035616,7]
[385712918,1757985048920,-400.0,0.00035616,7]
[385712919,1757985048930,-400.0,0.00035616,7]
[385712920,1757985048939,-408.01194828,0.00035616,7]
[385712921,1757985048949,-400.0,0.00035616,7]
[385712922,1757985048959,-400.0,0.00035616,7]
[385712923,1757985048969,-400.0,0.00035616,7]
[385712924,1757985048979,-400.0,0.00035616,7]
[385712925,1757985048988,-400.0,0.00035616,7]
[385712926,1757985048999,-400.0,0.00035616,7]
[385712927,1757985049010,-400.0,0.00035616,7]
[385712928,1757985049020,-400.0,0.00035616,2]
[385712929,1757985049030,-310.12959309,0.00035616,2]
[385712930,1757985049040,-400.0,0.00035616,7]
[385712931,1757985049050,-400.0,0.00035616,7]
[385712932,1757985049059,-240.63659864,0.00035616,7]
[385712933,1757985049069,-237.17406909,0.00035616,7]
[385712934,1757985049079,-177.54541417,0.00035616,7]
[385712935,1757985049089,-400.0,0.00035616,7]
[385712936,1757985049099,-400.0,0.00035616,7]
[385712937,1757985049108,-400.0,0.00035616,7]
[385712938,1757985049117,-305.97477898,0.00035616,7]
[385712939,1757985049127,-400.0,0.00035616,7]
[385712940,1757985049138,-400.0,0.00035616,7]
[385712941,1757985049148,-400.0,0.00035616,7]
[385712942,1757985049158,-400.0,0.00035616,7]
[385712943,1757985049167,-399.77605006,0.00035616,7]
[385712944,1757985049176,-400.0,0.00035616,7]
[385712945,1757985049187,-204.53624979,0.00035616,7]
[385712946,1757985049196,-404.05119597,0.00035616,7]
[385712947,1757985049206,-400.0,0.00035616,7]
[385712948,1757985049216,-400.0,0.00035616,7]
[385712949,1757985049225,-400.0,0.00035616,7]
[385712950,1757985049234,-400.0,0.00035616,7]
[385712951,1757985049244,-400.0,0.00035616,7]
[385712952,1757985049255,-400.0,0.00035616,7]
[385712953,1757985049266,-400.0,0.00035616,7]
[385712954,1757985049275,-400.0,0.00035616,7]
[385712955,1757985049286,-400.0,0.00035616,7]
[385712956,1757985049296,-400.0,0.00035616,7]
[385712957,1757985049306,-400.0,0.00035616,7]
[385712958,1757985049315,-200.35887702,0.00035616,7]
[385712959,1757985049323,-400.0,0.00035616,7]
[385712960,1757985049333,-400.0,0.00035616,7]
[385712961,1757985049342,-400.0,0.00035616,7]
[385712962,1757985049351,-400.0,0.00035616,7]
[385712963,1757985049360,-400.0,0.00035616,7]
[385712964,1757985049369,-400.0,0.00035616,7]
[385712965,1757985049379,-400.0,0.00035616,7]
[385712966,1757985049388,-400.0,0.00035616,7]
[385712967,1757985049397,-400.0,0.00035616,7]
[385712968,1757985049406,-400.0,0.00035616,7]
[385712969,1757985049415,-400.0,0.00035616,7]
[385712970,1757985049424,-400.0,0.00035616,7]
[385712971,1757985049434,-400.0,0.00035616,7]
[385712972,1757985049447,-403.89649234,0.00035616,7]
[385712973,1757985049456,-400.0,0.00035616,7]
[385712974,1757985049465,-400.0,0.00035616,7]
[385712975,1757985049474,-400.0,0.00035616,7]
[385712976,1757985049483,-400.0,0.00035616,7]
[385712977,1757985049493,-400.0,0.00035616,7]
[385712978,1757985049502,-400.0,0.00035616,7]
[385712979,1757985049511,-400.0,0.00035616,7]
[385712980,1757985049520,-417.55833721,0.00035616,7]
[385712981,1757985049530,-400.0,0.00035616,7]
[385712982,1757985049539,-400.0,0.00035616,7]
[385712983,1757985049548,-400.0,0.00035616,7]
[385712984,1757985049558,-400.0,0.00035616,7]
[385712985,1757985049568,-400.0,0.00035616,7]
[385712986,1757985049577,-400.0,0.00035616,7]
[385712987,1757985049587,-400.0,0.00035616,7]
[385712988,1757985049596,-400.0,0.00035616,7]
[385712989,1757985049605,-400.0,0.00035616,7]
[385712990,1757985049616,-400.0,0.00035616,7]
[385712991,1757985049625,-400.0,0.00035616,7]
[385712992,1757985049634,-400.0,0.00035616,7]
[385712993,1757985049643,-400.0,0.00035616,7]
[385712994,1757985049652,-404.25004097,0.00035616,7]
[385712995,1757985049662,-200.0,0.00035616,2]
[385712996,1757985049671,-400.0,0.00035616,7]
[385712997,1757985049680,-400.90985871,0.00035616,7]
[385712998,1757985049689,-400.0,0.00035616,7]
[385712999,1757985049701,-400.0,0.00035616,7]
[385713000,1757985049715,-400.0,0.00035616,7]
[385713001,1757985049735,-400.0,0.00035616,7]
[385713002,1757985049748,-400.0,0.00035616,7]
[385713003,1757985049758,-534.04,0.00035616,7]
[385713004,1757985049768,-400.0,0.00035616,7]
[385713005,1757985049778,-400.0,0.00035616,7]
[385713006,1757985049787,-469.77141185,0.00035616,7]
[385713007,1757985049797,-400.0,0.00035616,7]
[385713008,1757985049807,-400.0,0.00035616,7]
[385713009,1757985049818,-400.0,0.00035616,7]
[385713010,1757985049828,-1000.0,0.00035616,7]
[385713011,1757985049837,-400.0,0.00035616,7]
[385713012,1757985049847,-400.0,0.00035616,7]
[385713013,1757985049858,-400.0,0.00035616,7]
[385713014,1757985049868,-400.0,0.00035616,7]
[385713015,1757985049879,-400.0,0.00035616,7]
[385713016,1757985049888,-400.0,0.00035616,7]
[385713017,1757985049899,-400.0,0.00035616,7]
[385713018,1757985049909,-400.0,0.00035616,7]
[385713019,1757985049920,-400.0,0.00035616,7]
[385713020,1757985049930,-400.0,0.00035616,7]
[385713021,1757985049939,-400.0,0.00035616,7]
[385713022,1757985049949,-400.0,0.00035616,7]
[385713023,1757985049959,-400.0,0.00035616,7]
[385713024,1757985049969,-403.70079809,0.00035616,7]
[385713025,1757985049980,-400.0,0.00035616,7]
[385713026,1757985049990,-400.0,0.00035616,7]
[385713027,1757985049999,-400.0,0.00035616,7]
[385713028,1757985050009,-400.0,0.00035616,7]
[385713029,1757985050019,-400.0,0.00035616,7]
[385713030,1757985050029,-430.78,0.00035616,7]
[385713031,1757985050039,-400.0,0.00035616,7]
[385713032,1757985050050,-400.0,0.00035616,7]
[385713033,1757985050059,-430.78,0.00035616,7]
[385713034,1757985050230,-400.0,0.00035616,7]
[385713035,1757985050270,-400.0,0.00035616,7]
[385713036,1757985050281,-430.78,0.00035616,7]
[385713037,1757985050292,-400.0,0.00035616,7]
[385713038,1757985050302,-400.0,0.00035616,7]
[385713039,1757985050310,-430.78,0.00035616,7]
[385713040,1757985050319,-400.0,0.00035616,7]
[385713041,1757985050330,-400.0,0.00035616,7]
[385713042,1757985050341,-400.0,0.00035616,7]
[385713043,1757985050350,-430.78,0.00035616,7]
[385713044,1757985050359,-400.0,0.00035616,7]
[385713045,1757985050367,-400.0,0.00035616,7]
[385713046,1757985050376,-430.78,0.00035616,7]
[385713047,1757985050386,-400.0,0.00035616,7]
[385713048,1757985050395,-400.0,0.00035616,7]
[385713049,1757985050405,-430.78,0.00035616,7]
[385713050,1757985050414,-400.0,0.00035616,7]
[385713051,1757985050423,-430.78,0.00035616,7]
[385713052,1757985050432,-416.85,0.00035616,7]
[385713053,1757985050444,-430.78,0.00035616,7]
[385713054,1757985050452,-402.55194903,0.00035616,7]
[385713055,1757985050463,-430.78,0.00035616,7]
[385713056,1757985050472,-430.78,0.00035616,7]
[385713057,1757985050483,-430.78,0.00035616,7]